[Event "SixDays Budapest January-IMA 2023"]
[Site "Budapest"]
[Date "2023.01.27"]
[Round "8.1"]
[White "Ongut, Tamas Gunes"]
[Black "Ihnat, Marek"]
[Result "0-1"]
[ECO "A16"]
[WhiteElo "2340"]
[BlackElo "2138"]
[Annotator "TA"]
[PlyCount "72"]
[EventDate "2023.01.23"]
[EventType "tourn"]
[EventCountry "HUN"]
[SourceTitle "playchess.com"]
[Source "ChessBase"]
[SourceQuality "1"]
[TimeControl "5400+30"]

{[%evp 9,72,22,60,33,25,20,38,8,0,6,33,0,0,0,0,0,0,0,40,-72,-75,-106,-117,-206,-200,-206,-202,-252,-261,-265,-256,-265,-252,-317,-318,-339,-247,-237,-204,-301,-262,-363,-365,-435,-419,-463,-467,-468,-468,-452,-438,-526,-319,-298,-277,-250,-243,-250,-229,-298,-264,-322,-300,-335,-285]} 1. c4 {[%emt 0:00:03]} Nf6 {[%emt 0:00:11]} 2. Nc3 {[%emt 0:00:10]} d5 {[%emt 0:00:04]} 3. cxd5 {[%emt 0:00:53]} Nxd5 {[%emt 0:00:07]} 4. Nf3 {[%emt 0:00:15]} g6 {[%emt 0:00:17]} 5. h4 {[%emt 0:01:25]} h5 {[%emt 0:00:03]} 6. e4 {[%emt 0:00:51] A16: English Opening: 1...Nf6 with ...d5.} Nxc3 {[%emt 0:00:04]} 7. bxc3 {[%emt 0:00:04]} (7. dxc3 {simplifies} Qxd1+ 8. Kxd1 Nd7 9. Bf4) 7... Bg7 {[%emt 0:01:40]} 8. Bc4 {[%emt 0:05:01] White is slightly better.} O-O {[%emt 0:05:53]} 9. Ng5 {[%emt 0:01:38] [#]} Nc6 $146 {[%emt 0:04:50]} ({Predecessor:} 9... Nd7 10. d4 Nb6 11. Be2 c5 12. Be3 cxd4 13. cxd4 Qd6 14. Qd2 f6 15. Nh3 Bd7 {1-0 Malka,S (2256)-Nava Ruiz,M (1834) Mexico City Independence Cup 11th 2022 (6)}) 10. d4 {[%emt 0:01:28] Repels Ne5} Na5 {[%emt 0:00:26]} 11. Be2 {[%emt 0:01:10]} c5 {[%emt 0:00:51][%cal Rc5d4]} 12. Be3 {[%emt 0:00:37]} Nc6 {[%emt 0:07:18]} 13. e5 {[%emt 0:06:45]} Qa5 {[%emt 0:03:21] Threatens to win with ...cxd4.} 14. Kf1 {[%emt 0:01:02] [#]} (14. O-O $14 {was forced to keep a grip.}) 14... Bf5 $1 $17 {[%emt 0:13:07] White must now prevent ...Rad8. Black continues to play with concentration.} 15. g4 {[%emt 0:05:17]} hxg4 {[%emt 0:06:25] Hoping for ...Rad8.} 16. Bxg4 {[%emt 0:09:24]} (16. Rc1 $17 {keeps fighting.}) 16... Bxg4 $19 {[%emt 0:07:29]} (16... Qxc3 17. Bxf5 cxd4 18. Bf4 $16 (18. Rc1 Qa3 $16)) 17. Qxg4 {[%emt 0:00:07]} Qxc3 {[%emt 0:00:35]} 18. Kg2 {[%emt 0:21:56]} cxd4 {[%emt 0:01:53]} (18... Nxd4 19. h5 Qd3 20. Rac1 $17) 19. Bf4 {[%emt 0:00:06]} Nxe5 {[%emt 0:02:09]} (19... Bxe5 20. h5 Bxf4 21. Qxf4 $17) 20. Bxe5 {[%emt 0:00:32]} Bxe5 {[%emt 0:00:11]} 21. Nf3 {[%emt 0:03:40]} Bf6 {[%emt 0:06:58]} 22. h5 {[%emt 0:06:01]} Kg7 {[%emt 0:06:39][%cal Bg8g7,Bg7f7,Bf7e8][%mdl 32]} 23. hxg6 {[%emt 0:00:07] [#] Threatening mate with Rh7+.} fxg6 {[%emt 0:01:14] Strongly threatening ...Qc8.} 24. Rab1 {[%emt 0:01:39]} (24. Rac1 $142 Qa5 25. Nxd4 Qd5+ 26. Nf3) 24... b6 {[%emt 0:04:18]} ({Avoid the trap} 24... Rh8 $2 25. Rhc1 Qa5 26. Rxb7 $19) 25. Rh3 {[%emt 0:00:20]} Qc8 {[%emt 0:02:12]} 26. Qf4 {[%emt 0:01:23]} Qf5 {[%emt 0:05:13] Against Ne5} 27. Qh6+ {[%emt 0:01:37]} Kf7 {[%emt 0:00:05]} 28. Qh7+ {[%emt 0:00:06]} Ke8 {[%emt 0:08:38]} 29. Re1 {[%emt 0:00:05]} Rc8 {[%emt 0:03:11]} 30. Nxd4 {[%emt 0:01:25]} Qd5+ {[%emt 0:03:36]} 31. Nf3 {[%emt 0:01:15]} Qxa2 {[%emt 0:01:16]} 32. Qxg6+ {[%emt 0:00:56]} Qf7 {[%emt 0:00:01]} 33. Qf5 {[%emt 0:00:34][%cal Rf5c8]} Rg8+ {[%emt 0:00:35]} 34. Kh1 {[%emt 0:00:12][%cal Rf5c8]} Rd8 {[%emt 0:00:56] Black has a decisive advantage.} ({Worse is} 34... Rc5 35. Qf4 $17) 35. Rh7 {[%emt 0:01:48]} Qg6 {[%emt 0:02:07][%csl Gg8][%cal Rg6g2]} 36. Qh3 {[%emt 0:00:08] Repels Qg2+} Qg4 {[%emt 0:01:42] An entertaining game by Ihnat.   Weighted Error Value: White=0.43/Black=0.20 (precise)} 0-1

[Event "SixDays Budapest January-IMA 2023"]
[Site "Budapest"]
[Date "2023.01.27"]
[Round "8.2"]
[White "Leszko, Bence"]
[Black "Orso, Miklos"]
[Result "1-0"]
[ECO "B31"]
[WhiteElo "2298"]
[BlackElo "2256"]
[Annotator "TA"]
[PlyCount "57"]
[EventDate "2023.01.23"]
[EventType "tourn"]
[EventCountry "HUN"]
[SourceTitle "playchess.com"]
[Source "ChessBase"]
[SourceQuality "1"]
[TimeControl "5400+30"]

{[%evp 20,57,0,4,16,11,20,8,11,5,12,21,64,64,63,77,72,43,43,43,60,55,74,83,109,71,350,335,832,836,835,813,813,829,1143,1097,1114,1071,29985,29986]} 1. e4 {[%emt 0:00:04]} c5 {[%emt 0:00:26]} 2. Nf3 {[%emt 0:00:06]} Nc6 {[%emt 0:00:08]} 3. Bb5 {[%emt 0:00:05]} g6 {[%emt 0:00:33]} 4. O-O {[%emt 0:00:05]} Bg7 {[%emt 0:00:09]} 5. c3 {[%emt 0:00:08]} Nf6 {[%emt 0:00:58]} 6. Re1 {[%emt 0:01:22]} O-O {[%emt 0:00:11]} 7. d4 {[%emt 0:00:20]} cxd4 {[%emt 0:00:19]} 8. cxd4 {[%emt 0:00:07]} d5 {[%emt 0:00:21]} 9. e5 {[%emt 0:00:15]} Ne4 {[%emt 0:00:26]} 10. Nbd2 {[%emt 0:01:28]} Nxd2 {[%emt 0:01:35]} 11. Bxd2 {[%emt 0:00:15]} Bg4 {[%emt 0:00:44] B31: Sicilian: 2...Nc6 3 Bb5 g6.} 12. Bxc6 {[%emt 0:00:59]} bxc6 {[%emt 0:00:28] Black is weak on the dark squares} 13. h3 {[%emt 0:00:08]} Bxf3 {[%emt 0:00:24] The position is equal.} 14. Qxf3 {[%emt 0:00:07]} Qb6 {[%emt 0:00:26]} 15. Qc3 {[%emt 0:00:28] [#]} f6 $146 {[%emt 0:02:57]} ({Predecessor:} 15... a5 16. Rac1 Rfc8 17. b3 f6 18. e6 f5 19. Qc5 Qxc5 20. Rxc5 Bxd4 21. Rxa5 Rxa5 22. Bxa5 {1-0 Lesbekova,A (1920)-Hartikainen,J (2133) Titled Tuesday intern op 12th Oct blitz 2021 (11)}) 16. Bf4 {[%emt 0:01:53]} f5 {[%emt 0:07:51]} 17. Rac1 {[%emt 0:00:39][%cal Ba1c1,Bc1c2,Bc2c3,Bc3g3,Bg3g6][%mdl 32]} Rfc8 {[%emt 0:00:59]} 18. Rc2 {[%emt 0:01:06]} e6 {[%emt 0:01:25]} 19. Rec1 {[%emt 0:01:02]} Bf8 {[%emt 0:02:02] Repels Qc5} 20. h4 {[%emt 0:06:00][%cal Oh4h5]} h5 {[%emt 0:19:19]} 21. Qg3 {[%emt 0:05:14]} Kh7 {[%emt 0:00:55]} 22. Qg5 {[%emt 0:01:50] Strongly threatening Qf6. White is more active.} Rc7 $2 {[%emt 0:09:04][%mdl 8192] [#] This costs Black the game.} (22... Qb7 $16) 23. Rc3 $1 $18 {[%emt 0:03:49] Threatens to win with Rg3.} Re8 $2 {[%emt 0:17:17]} (23... Qb7 24. Rg3 Rg7 25. Qh6+ {[%mdl 64] Deflection} Kg8) 24. Rg3 {[%emt 0:01:09]} Rg7 {[%emt 0:00:37]} 25. Qh6+ {[%emt 0:00:16][%mdl 64] Deflection} Kg8 {[%emt 0:00:05]} 26. Rxg6 {[%emt 0:01:08]} Ree7 {[%emt 0:07:44]} 27. Bg5 {[%emt 0:01:11]} ({Not} 27. Rxe6 Rxg2+ 28. Kxg2 Bxh6 29. Rxe7 Bxf4 $11) 27... Ref7 {[%emt 0:01:02]} 28. Bf6 {[%emt 0:00:23][%mdl 64] [#] Pin} Qxd4 {[%emt 0:01:05]} 29. Rxc6 {[%emt 0:04:24] Weighted Error Value: White=0.02 (flawless) /Black=0.90} 1-0

[Event "SixDays Budapest January-IMA 2023"]
[Site "Budapest"]
[Date "2023.01.27"]
[Round "8.3"]
[White "Polyik, Peter"]
[Black "Baski, Barnabas"]
[Result "0-1"]
[ECO "C45"]
[WhiteElo "2323"]
[BlackElo "2188"]
[Annotator "TA"]
[PlyCount "98"]
[EventDate "2023.01.23"]
[EventType "tourn"]
[EventCountry "HUN"]
[SourceTitle "playchess.com"]
[Source "ChessBase"]
[SourceQuality "1"]
[TimeControl "5400+30"]

{[%evp 14,97,-8,-17,-18,-30,0,0,26,23,16,20,13,20,34,33,58,70,62,64,57,67,62,70,60,58,68,53,86,60,50,-36,-41,-71,-78,-139,-143,-182,-181,-183,-182,-203,-203,-203,-203,-203,-203,-203,-183,-176,-164,-159,-156,-165,-140,-270,-192,-181,-204,-194,-179,-280,-256,-307,-274,-2598,-2106,-2141,-2197,-6219,-6320,-6123,-5708,-5708,-5642,-2904,-2445,-1665,-1377,-29986,-29987,-29989,-29990,-29997,-29998,-29999]} 1. e4 {[%emt 0:00:02]} e5 {[%emt 0:00:20]} 2. Nf3 {[%emt 0:00:07]} Nc6 {[%emt 0:00:08]} 3. d4 {[%emt 0:00:06]} exd4 {[%emt 0:00:12]} 4. Nxd4 {[%emt 0:00:06]} Nf6 {[%emt 0:00:31][%cal Bg8f6,Bf6d5,Bd5b4][%mdl 32]} 5. Nxc6 {[%emt 0:00:08]} bxc6 {[%emt 0:00:11]} 6. e5 {[%emt 0:00:06]} Qe7 {[%emt 0:00:19]} 7. Qe2 {[%emt 0:00:08]} Nd5 {[%emt 0:00:24]} 8. h4 {[%emt 0:00:07]} Qe6 {[%emt 0:04:37] C45: Scotch Game.} 9. Nd2 {[%emt 0:00:16] 9.Nd2 is better than 9.g3.} Nb4 {[%emt 0:07:29]} 10. Nf3 {[%emt 0:01:05]} c5 {[%emt 0:03:58][%cal Oe6f5] The position is equal.} 11. a3 {[%emt 0:04:19]} Ba6 {[%emt 0:05:19]} 12. c4 {[%emt 0:02:00]} Nc6 {[%emt 0:00:35]} 13. Bd2 {[%emt 0:00:32][%cal Bc1d2,Bd2c3,Bc3f6][%mdl 32] [#]} f6 $146 {[%emt 0:12:41]} ({Predecessor:} 13... h6 14. Bc3 O-O-O 15. g3 Be7 16. Nd2 Rhe8 17. Bh3 f5 18. Bg2 Nxe5 19. Bxe5 Bf6 {0-1 Paikidze,N (2354)-Lee,M (2226) USA-ch (Women) 2022 (2)}) 14. exf6 {[%emt 0:08:24]} Bxc4 {[%emt 0:03:40][%mdl 64] Pin} 15. Qxe6+ {[%emt 0:00:19]} Bxe6 {[%emt 0:00:06]} 16. Bc3 {[%emt 0:03:38]} gxf6 {[%emt 0:07:39]} 17. Bxf6 {[%emt 0:01:14]} Rg8 {[%emt 0:00:06]} 18. Ng5 {[%emt 0:04:50] Strongly threatening Bb5.} Nd4 {[%emt 0:04:15] Dodges Bb5. And now ...Nc2+ would win.} 19. Bd3 {[%emt 0:10:35] Prevents Nc2+} (19. Nxh7 $2 {loses.} Nc2+ 20. Kd2 Nxa1 $19) 19... h6 {[%emt 0:05:30]} 20. Nxe6 {[%emt 0:02:38]} Nxe6 {[%emt 0:00:30]} 21. O-O-O {[%emt 0:02:28] Black is weak on the light squares} Be7 {[%emt 0:01:43]} (21... Rxg2 $2 22. Be4 $18) 22. Bxe7 {[%emt 0:10:23]} (22. Bc3 $14) 22... Kxe7 $15 {[%emt 0:00:17]} 23. Rhe1 {[%emt 0:00:08] [#]} Raf8 {[%emt 0:02:47] Inhibits Bf5. Black converts the advantage convincingly.} 24. Be4 {[%emt 0:20:46]} (24. Bc4 $142 Rxg2 25. Bxe6 dxe6 26. Re5) 24... Rxf2 $17 {[%emt 0:02:03]} 25. Rd2 {[%emt 0:04:21]} Rxd2 {[%emt 0:03:20]} 26. Kxd2 $19 {[%emt 0:00:06][%mdl 4096] Endgame KRB-KRN} Rg4 {[%emt 0:03:35]} 27. h5 {[%emt 0:00:51]} Rg5 {[%emt 0:02:38][%cal Og5e5]} 28. Bf3 {[%emt 0:01:10]} d5 {[%emt 0:05:20] Dodges Re4} 29. g4 {[%emt 0:00:37]} Kd6 {[%emt 0:00:46]} 30. Bd1 {[%emt 0:00:27]} Re5 {[%emt 0:01:04] Threatens to win with ...Rxe1.} 31. Rf1 {[%emt 0:00:20]} Ng5 {[%emt 0:01:15]} 32. Rf8 {[%emt 0:00:14]} Ne4+ {[%emt 0:06:49]} 33. Kc2 {[%emt 0:00:00]} c4 {[%emt 0:00:13]} 34. b4 {[%emt 0:04:16]} (34. Rd8+ $17 Kc6 35. Ra8) 34... cxb3+ {[%emt 0:03:20]} 35. Kxb3 {[%emt 0:00:06]} c5 {[%emt 0:00:55][%cal Bc7c5,Bc5c4][%mdl 32]} 36. Rd8+ {[%emt 0:02:00]} Kc7 {[%emt 0:00:53]} 37. Rf8 {[%emt 0:00:52]} (37. Ra8 $142) 37... c4+ {[%emt 0:00:58]} 38. Kb4 {[%emt 0:00:15]} Re6 {[%emt 0:00:44]} 39. Bc2 $2 {[%emt 0:02:27]} (39. a4 Rb6+ 40. Ka3) 39... Rb6+ {[%emt 0:01:16]} 40. Ka5 {[%emt 0:00:05]} Nd6 {[%emt 0:01:28] ...Kc6 is the strong threat.} 41. Rh8 {[%emt 0:00:41]} Nb7+ {[%emt 0:04:32]} 42. Ka4 {[%emt 0:00:06]} Nc5+ {[%emt 0:00:36]} 43. Ka5 {[%emt 0:00:05] [#]} Nb3+ $1 {[%emt 0:01:00]} 44. Ka4 {[%emt 0:00:53]} Nd4 {[%emt 0:01:54]} 45. Rh7+ {[%emt 0:00:57]} Kc6 {[%emt 0:00:36]} 46. Rxh6+ {[%emt 0:05:02]} Kc5 {[%emt 0:00:22] Black mates.} 47. g5 {[%emt 0:00:31]} Nxc2 {[%emt 0:01:16]} 48. Rf6 {[%emt 0:00:41]} Rb3 {[%emt 0:00:28][%csl Gc2][%cal Rb3a3]} 49. h6 {[%emt 0:00:28]} Rxa3# {[%emt 0:00:11] Weighted Error Value: White=0.57/Black=0.08 (flawless)} 0-1

[Event "SixDays Budapest January-IMA 2023"]
[Site "Budapest"]
[Date "2023.01.27"]
[Round "8.4"]
[White "Taragan, Uri"]
[Black "Magold, Filip"]
[Result "0-1"]
[ECO "D35"]
[WhiteElo "1733"]
[BlackElo "2230"]
[Annotator "TA"]
[PlyCount "174"]
[EventDate "2023.01.23"]
[EventType "tourn"]
[EventCountry "HUN"]
[SourceTitle "playchess.com"]
[Source "ChessBase"]
[SourceQuality "1"]
[TimeControl "5400+30"]

{[%evp 18,174,28,28,28,26,28,22,52,4,16,0,0,0,0,0,0,0,0,0,0,0,0,0,0,0,0,0,0,0,0,0,0,0,0,0,0,0,20,20,20,20,20,20,20,20,20,20,20,20,20,0,20,20,20,0,0,0,20,11,10,0,12,17,17,17,17,17,17,17,17,12,15,5,12,5,12,12,25,0,0,0,0,0,12,12,12,12,12,0,0,0,0,0,0,0,0,0,0,0,0,-6,-11,-12,0,0,0,0,0,-59,0,0,0,0,0,0,0,0,0,0,8,-5,-6,-61,-35,-86,-43,-82,-102,-85,-65,-150,-139,-183,-177,-1152,-1236,-1106,-1129,-970,-959,-5477,-5193,-29982,-29983,-29983,-29984,-29984,-29985,-29985,-29986,-29986,-29987,-29988,-29989,-29989,-29990,-29991,-29992]} 1. d4 {[%emt 0:00:02]} d5 {[%emt 0:00:46]} 2. c4 {[%emt 0:00:12]} e6 {[%emt 0:00:04]} 3. Nc3 {[%emt 0:00:08]} Nf6 {[%emt 0:00:04]} 4. cxd5 {[%emt 0:00:04]} exd5 {[%emt 0:00:03]} 5. Bg5 {[%emt 0:00:13]} c6 {[%emt 0:00:04]} 6. e3 {[%emt 0:00:06]} Bf5 {[%emt 0:00:03]} 7. Qf3 {[%emt 0:01:36]} Bg6 {[%emt 0:00:08]} 8. Bxf6 {[%emt 0:00:10]} Qxf6 {[%emt 0:00:04]} 9. Qxf6 {[%emt 0:00:09]} gxf6 {[%emt 0:00:04]} 10. h4 {[%emt 0:07:57]} h5 {[%emt 0:00:20] D35: Queen's Gambit Declined: Exchange Variation.} 11. Nge2 {[%emt 0:04:08]} Nd7 {[%emt 0:01:56]} 12. Nf4 {[%emt 0:02:31]} a5 {[%emt 0:01:09] [#] The position is equal.} 13. a4 $146 {[%emt 0:02:08]} (13. Bd3 $14) ({Predecessor:} 13. Bd3 Bxd3 14. Nxd3 a4 15. Ne2 Bd6 16. Rh3 Ke7 17. Ndf4 Nf8 18. Nd3 Rg8 19. Nef4 {½-½ Matsuura,E (2467)-Umetsubo,C (2348) Catarinense-ch 2014 (5)}) 13... Bd6 $11 {[%emt 0:05:31]} 14. Nxg6 {[%emt 0:09:58]} fxg6 {[%emt 0:00:09]} 15. Bd3 {[%emt 0:00:12]} f5 {[%emt 0:01:04]} 16. Kd2 {[%emt 0:03:00][%cal Be1d2,Bd2e2,Be2f1,Bf1g2][%mdl 32]} Nf6 {[%emt 0:02:27]} 17. g3 {[%emt 0:01:45]} Kf7 {[%emt 0:00:40]} 18. Ke2 {[%emt 0:05:00]} Rhe8 {[%emt 0:01:36]} 19. Kf1 {[%emt 0:00:45]} Re7 {[%emt 0:03:10]} 20. Kg2 {[%emt 0:00:32]} Rae8 {[%emt 0:04:17]} 21. Rac1 {[%emt 0:02:14]} Ng4 {[%emt 0:02:16][%cal Bf6g4,Bg4h6,Bh6f7,Bf7d8,Bd8e6][%mdl 32]} 22. Be2 {[%emt 0:03:14]} Nh6 {[%emt 0:02:15]} 23. Rc2 {[%emt 0:02:56]} Kf6 {[%emt 0:01:26]} 24. Bf3 {[%emt 0:02:41]} Rg7 {[%emt 0:02:04]} 25. Rcc1 {[%emt 0:11:18]} Nf7 {[%emt 0:00:36]} 26. Ne2 {[%emt 0:00:31]} Nd8 {[%emt 0:02:38]} 27. Nf4 {[%emt 0:03:49]} Bxf4 {[%emt 0:03:07]} 28. gxf4 {[%emt 0:00:12]} Ne6 {[%emt 0:01:13]} 29. Rhd1 {[%emt 0:02:06]} Ke7 {[%emt 0:01:31]} 30. Rc3 {[%emt 0:03:49]} Kd6 {[%emt 0:00:52]} 31. Rdc1 {[%emt 0:00:15]} Rge7 {[%emt 0:01:43]} 32. Kh2 {[%emt 0:02:17]} Rb8 {[%emt 0:05:11]} 33. Rg1 {[%emt 0:01:10]} Nf8 {[%emt 0:00:40]} 34. Rgc1 {[%emt 0:00:24]} Re6 {[%emt 0:00:17]} 35. Rc5 {[%emt 0:00:50]} Ra8 {[%emt 0:00:13]} 36. Kg2 {[%emt 0:03:04]} Nd7 {[%emt 0:01:41]} 37. R5c3 {[%emt 0:00:08]} Nb6 {[%emt 0:03:40]} 38. b3 {[%emt 0:00:16]} Nd7 {[%emt 0:01:42]} 39. Kf1 {[%emt 0:02:12]} Nb8 {[%emt 0:01:41]} 40. Be2 {[%emt 0:00:45]} b6 {[%emt 0:01:15]} 41. Bf3 {[%emt 0:00:42]} Ra7 {[%emt 0:01:17]} 42. Kg2 {[%emt 0:06:43]} Rc7 {[%emt 0:00:14]} 43. Be2 {[%emt 0:00:02]} Kd7 {[%emt 0:03:44]} 44. Kg3 {[%emt 0:01:01]} Rd6 {[%emt 0:00:20]} 45. Kh3 {[%emt 0:00:53]} Kc8 {[%emt 0:00:09]} 46. Kg2 {[%emt 0:02:45]} Kb7 {[%emt 0:00:56]} 47. Kf1 {[%emt 0:00:17]} Nd7 {[%emt 0:00:21]} 48. Bb5 {[%emt 0:01:15]} Nf8 {[%emt 0:00:29]} 49. Be2 {[%emt 0:01:32]} Ne6 {[%emt 0:00:27]} 50. Bf3 {[%emt 0:00:07]} Rcd7 {[%emt 0:05:06]} 51. Rb1 {[%emt 0:05:10]} c5 {[%emt 0:01:05]} 52. dxc5 {[%emt 0:00:13]} bxc5 {[%emt 0:00:09]} 53. Rd1 {[%emt 0:02:35]} Kb6 {[%emt 0:00:25]} 54. Be2 {[%emt 0:01:10]} d4 {[%emt 0:01:16]} 55. Rcd3 {[%emt 0:00:47]} Nf8 {[%emt 0:12:46]} 56. R3d2 {[%emt 0:03:05]} Nh7 {[%emt 0:00:32]} 57. Bb5 {[%emt 0:01:44]} Rd8 {[%emt 0:00:06]} 58. Rc1 {[%emt 0:01:32]} Nf6 {[%emt 0:07:54]} 59. Rdc2 {[%emt 0:00:44]} Ne4 {[%emt 0:07:45] White should prevent ...d3.} 60. exd4 {[%emt 0:00:29]} cxd4 {[%emt 0:00:45] [#] Hoping for ...d3.} 61. Rc6+ {[%emt 0:01:17]} Kb7 {[%emt 0:03:28]} 62. Rc7+ {[%emt 0:01:35]} Kb8 {[%emt 0:00:24] White must now prevent ...d3.} 63. Bd3 {[%emt 0:00:17]} (63. Rg7 $11) 63... Nc3 {[%emt 0:00:50]} (63... Rb6 $15) 64. Rg7 {[%emt 0:00:54]} R8d7 {[%emt 0:01:14]} 65. Rg8+ {[%emt 0:00:24]} Rd8 {[%emt 0:02:52]} 66. Rg7 {[%emt 0:00:05]} Re6 {[%emt 0:00:09]} 67. Re1 {[%emt 0:01:15]} Rxe1+ {[%emt 0:01:47]} 68. Kxe1 {[%emt 0:00:01][%mdl 4096] Endgame KRB-KRN} Nd5 {[%emt 0:00:09]} 69. Kd2 {[%emt 0:01:02]} Nxf4 {[%emt 0:00:02]} 70. f3 {[%emt 0:00:36]} ({Better is} 70. Be2 $11) 70... Rd6 {[%emt 0:00:31]} 71. Rg8+ {[%emt 0:00:28]} (71. Bb5 $15) 71... Kb7 {[%emt 0:00:12]} 72. Rg7+ {[%emt 0:00:31]} Kb6 {[%emt 0:00:15]} 73. Rg8 {[%emt 0:00:22]} Re6 {[%emt 0:02:22] aiming for ...Re3.} 74. Rb8+ {[%emt 0:00:17]} (74. Bc4 $15 Re3 75. Rd8) 74... Kc7 $17 {[%emt 0:00:03] Black is more active.} 75. Rb5 {[%emt 0:00:26]} Re3 {[%emt 0:00:03]} 76. Bxf5 $2 {[%emt 0:00:53]} (76. Bc4) 76... gxf5 $19 {[%emt 0:00:18]} 77. Rxf5 {[%emt 0:00:02]} Rxf3 {[%emt 0:00:07]} 78. Rxa5 {[%emt 0:00:10] KRN-KR} Rf2+ {[%emt 0:00:05]} 79. Ke1 {[%emt 0:00:06]} Rb2 {[%emt 0:00:13] ( -> ...Ng2+)} 80. Rf5 {[%emt 0:00:36]} Ng2+ {[%emt 0:00:04] Black mates.} 81. Kd1 {[%emt 0:00:18]} Ne3+ {[%emt 0:00:19]} 82. Kc1 {[%emt 0:00:05]} Nxf5 {[%emt 0:00:04]} 83. Kxb2 {[%emt 0:00:07]} Nxh4 {[%emt 0:00:02]} 84. Kc2 {[%emt 0:00:07]} Nf5 {[%emt 0:00:15]} 85. Kd3 {[%emt 0:00:05]} h4 {[%emt 0:00:03][%cal Bh5h4,Bh4h3][%mdl 32]} 86. Ke4 {[%emt 0:00:09] [#]} h3 $1 {[%emt 0:00:05]} 87. Kf3 {[%emt 0:00:08]} (87. b4 h2) 87... d3 {[%emt 0:00:04] Weighted Error Value: White=0.04 (flawless) /Black=0.03 (flawless)} 0-1

[Event "SixDays Budapest January-IMA 2023"]
[Site "Budapest"]
[Date "2023.01.27"]
[Round "8.5"]
[White "Szeberenyi, Adam"]
[Black "Heimisson, Hilmir Freyr"]
[Result "1/2-1/2"]
[ECO "D34"]
[WhiteElo "2331"]
[BlackElo "2321"]
[Annotator "TA"]
[PlyCount "65"]
[EventDate "2023.01.23"]
[EventType "tourn"]
[EventCountry "HUN"]
[SourceTitle "playchess.com"]
[Source "ChessBase"]
[SourceQuality "1"]
[TimeControl "5400+30"]

{[%evp 22,65,22,29,34,40,51,4,16,14,35,19,23,31,16,0,0,0,0,0,0,0,0,0,0,0,0,0,0,0,0,0,0,0,0,0,0,0,0,0,0,0,0,0,0,0]} 1. d4 {[%emt 0:00:04]} d5 {[%emt 0:02:08]} 2. c4 {[%emt 0:00:32]} e6 {[%emt 0:00:28]} 3. Nc3 {[%emt 0:00:59]} c5 {[%emt 0:00:09]} 4. cxd5 {[%emt 0:01:04]} exd5 {[%emt 0:04:47]} 5. Nf3 {[%emt 0:00:18]} Nf6 {[%emt 0:00:08]} 6. g3 {[%emt 0:05:47]} Nc6 {[%emt 0:00:08]} 7. Bg2 {[%emt 0:00:04]} Be7 {[%emt 0:00:16]} 8. O-O {[%emt 0:00:12]} O-O {[%emt 0:00:08]} 9. Bg5 {[%emt 0:00:46]} c4 {[%emt 0:00:33]} 10. Ne5 {[%emt 0:01:56]} Be6 {[%emt 0:00:14]} 11. Nxc6 {[%emt 0:07:24]} bxc6 {[%emt 0:00:07]} 12. b3 {[%emt 0:03:35]} h6 {[%emt 0:01:25] D34: Tarrasch Defence: 6 g3 Nf6 7 Bg2 Be7.} 13. Bxf6 {[%emt 0:02:51]} Bxf6 {[%emt 0:00:07]} 14. Rc1 {[%emt 0:04:06]} (14. bxc4 $14 {might be stronger.} dxc4 15. e3) 14... cxb3 {[%emt 0:29:17]} 15. axb3 {[%emt 0:00:14]} Qb6 {[%emt 0:01:04]} 16. Na4 {[%emt 0:01:13]} Qxd4 {[%emt 0:01:36]} 17. Qxd4 {[%emt 0:00:05]} Bxd4 {[%emt 0:00:07] [#] A strong pair of Bishops.} 18. Rxc6 $146 {[%emt 0:00:07] The position is equal.} (18. Rfd1 $5 {[%cal Rd1d4]} Bf6 19. Rxc6 $11) ({Predecessor:} 18. Rfd1 Bf6 19. Rxc6 Rab8 20. Nc5 Rb6 21. Rxb6 axb6 22. Nxe6 fxe6 23. Bh3 Re8 24. Rc1 Bd4 25. Rc6 {½-½ Juknis,P (2077)-Solys,L (2153) LTU-chT Rapid 2019 (8.2)}) 18... Rab8 {[%emt 0:08:18]} 19. Nc5 {[%emt 0:02:37]} Bxc5 {[%emt 0:06:01]} 20. Rxc5 {[%emt 0:00:07]} Rfd8 {[%emt 0:00:05]} 21. Ra5 {[%emt 0:04:14]} Rd7 {[%emt 0:07:40]} 22. f4 {[%emt 0:00:36] [#] f5 is the strong threat.} g6 {[%emt 0:02:49]} 23. Rfa1 {[%emt 0:01:26]} Rxb3 {[%emt 0:04:47]} 24. Rxa7 {[%emt 0:00:14]} Rxa7 {[%emt 0:00:14]} 25. Rxa7 $11 {[%emt 0:00:05][%mdl 4096] Endgame KRB-KRB} Rb2 {[%emt 0:01:38]} 26. Kf1 {[%emt 0:06:26]} d4 {[%emt 0:03:26]} 27. Ra4 {[%emt 0:00:16]} Bg4 {[%emt 0:01:39]} 28. Rxd4 {[%emt 0:00:12]} Bxe2+ {[%emt 0:00:09]} 29. Kg1 {[%emt 0:00:06]} Kg7 {[%emt 0:01:47]} 30. Rd7 {[%emt 0:04:31]} Bc4 {[%emt 0:00:36]} 31. Bd5 {[%emt 0:01:01]} Bxd5 {[%emt 0:01:47]} 32. Rxd5 {[%emt 0:00:06]} Kf6 {[%emt 0:00:10]} 33. h4 {[%emt 0:01:34] Weighted Error Value: White=0.05 (flawless) /Black=0.02 (flawless)} 1/2-1/2